[Event "Titled Tuesday Blitz July 25 Early 2023"]
[White "Mejia, Cherry Ann"]
[Black "Hansch, Karsten"]
[WhiteFideId "5206880"]
[BlackFideId "24692239"]
[WhiteElo "2398"]
[BlackElo "2539"]
[Result "0-1"]
[Round "6"]
[TimeControl "180+2"]
[Date "2023.07.25"]
[WhiteClock "0:00:00"]
[BlackClock "0:00:22"]
[Board "121"]

1. e4 {[%clk 0:02:58]}  c6 {[%clk 0:03:00]} 2. d4 {[%clk 0:02:58]}  d5 {[%clk 0:03:00]} 3. Nd2 {[%clk 0:02:58]}  dxe4 {[%clk 0:02:59]} 4. Nxe4 {[%clk 0:02:58]}  Nf6 {[%clk 0:03:00]} 5. Nxf6+ {[%clk 0:02:58]}  exf6 {[%clk 0:03:01]} 6. c3 {[%clk 0:02:59]}  Bd6 {[%clk 0:03:01]} 7. Bd3 {[%clk 0:02:56]}  O-O {[%clk 0:03:02]} 8. Qc2 {[%clk 0:02:53]}  Re8+ {[%clk 0:03:02]} 9. Ne2 {[%clk 0:02:53]}  f5 {[%clk 0:03:02]} 10. Bd2 {[%clk 0:02:50]}  c5 {[%clk 0:02:50]} 11. O-O-O {[%clk 0:02:48]}  Nc6 {[%clk 0:02:49]} 12. Rhe1 {[%clk 0:02:07]}  cxd4 {[%clk 0:02:43]} 13. cxd4 {[%clk 0:02:02]}  Be6 {[%clk 0:02:37]} 14. Kb1 {[%clk 0:01:58]}  Rc8 {[%clk 0:02:36]} 15. Qa4 {[%clk 0:01:34]}  Qh4 {[%clk 0:02:09]} 16. Bc3 {[%clk 0:01:07]}  Qxf2 {[%clk 0:01:57]} 17. d5 {[%clk 0:00:30]}  Bxd5 {[%clk 0:01:46]} 18. Rf1 {[%clk 0:00:25]}  Qe3 {[%clk 0:01:39]} 19. Bxf5 {[%clk 0:00:21]}  Bxg2 {[%clk 0:01:15]} 20. Bxc8 {[%clk 0:00:13]}  Bxf1 {[%clk 0:01:11]} 21. Qg4 {[%clk 0:00:12]}  Be5 {[%clk 0:00:55]} 22. Rxf1 {[%clk 0:00:11]}  Bxc3 {[%clk 0:00:48]} 23. Nxc3 {[%clk 0:00:11]}  Qd3+ {[%clk 0:00:47]} 24. Kc1 {[%clk 0:00:05]}  Qxf1+ {[%clk 0:00:48]} 25. Kc2 {[%clk 0:00:06]}  Qf2+ {[%clk 0:00:43]} 26. Kb3 {[%clk 0:00:05]}  Nd4+ {[%clk 0:00:37]} 27. Ka3 {[%clk 0:00:05]}  Ne6 {[%clk 0:00:31]} 28. Bxe6 {[%clk 0:00:05]}  Rxe6 {[%clk 0:00:30]} 29. Qc4 {[%clk 0:00:05]}  g6 {[%clk 0:00:26]} 30. Qc8+ {[%clk 0:00:03]}  Kg7 {[%clk 0:00:26]} 31. Qxb7 {[%clk 0:00:04]}  Qb6 {[%clk 0:00:25]} 32. Qxb6 {[%clk 0:00:04]}  Rxb6 {[%clk 0:00:25]} 33. b4 {[%clk 0:00:04]}  f5 {[%clk 0:00:24]} 34. Nd5 {[%clk 0:00:04]}  Rb7 {[%clk 0:00:23]} 35. Kb3 {[%clk 0:00:04]}  Rd7 {[%clk 0:00:23]} 36. Kc4 {[%clk 0:00:04]}  Kf7 {[%clk 0:00:23]} 37. a4 {[%clk 0:00:04]}  Ke6 {[%clk 0:00:22]} 38. Nf4+ {[%clk 0:00:03]}  Ke5 {[%clk 0:00:23]} 39. Nd3+ {[%clk 0:00:04]}  Rxd3 {[%clk 0:00:20]} 40. Kxd3 {[%clk 0:00:04]}  Kd5 {[%clk 0:00:21]} 41. h4 {[%clk 0:00:03]}  h6 {[%clk 0:00:21]} 42. a5 {[%clk 0:00:02]}  g5 {[%clk 0:00:21]} 43. hxg5 {[%clk 0:00:02]}  hxg5 {[%clk 0:00:22]} 44. b5 {[%clk 0:00:01]}  Kc5 {[%clk 0:00:21]} 45. b6 {[%clk 0:00:01]}  axb6 {[%clk 0:00:21]} 46. a6 {[%clk 0:00:02]}  Kc6 {[%clk 0:00:22]} 47. Kc4 {[%clk 0:00:02]}  Kc7 {[%clk 0:00:22]} 48. Kd4 {[%clk 0:00:00]}  Kb8 {[%clk 0:00:22]} 0-1


[Site "https://www.chess.com"]

[Event "Titled Tuesday Blitz July 25 Early 2023"]
[White "Sreyas Payyappat"]
[Black "Llanos, Guillermo"]
[WhiteFideId "46674969"]
[BlackFideId "100358"]
[WhiteElo "2509"]
[BlackElo "2371"]
[Result "1-0"]
[Round "6"]
[TimeControl "180+2"]
[Date "2023.07.25"]
[WhiteClock "0:01:25"]
[BlackClock "0:00:35"]
[Board "125"]

1. e4 {[%clk 0:03:00]}  Nf6 {[%clk 0:02:46]} 2. e5 {[%clk 0:03:00]}  Nd5 {[%clk 0:02:45]} 3. d4 {[%clk 0:03:01]}  d6 {[%clk 0:02:45]} 4. c4 {[%clk 0:02:58]}  Nb6 {[%clk 0:02:45]} 5. exd6 {[%clk 0:02:58]}  cxd6 {[%clk 0:02:44]} 6. Nc3 {[%clk 0:02:58]}  g6 {[%clk 0:02:44]} 7. Nf3 {[%clk 0:02:59]}  Bg7 {[%clk 0:02:44]} 8. Be3 {[%clk 0:02:59]}  O-O {[%clk 0:02:44]} 9. Qd2 {[%clk 0:02:59]}  Bg4 {[%clk 0:02:43]} 10. Be2 {[%clk 0:02:58]}  Bxf3 {[%clk 0:02:41]} 11. gxf3 {[%clk 0:02:59]}  d5 {[%clk 0:02:37]} 12. c5 {[%clk 0:02:58]}  Nc4 {[%clk 0:02:37]} 13. Bxc4 {[%clk 0:02:58]}  dxc4 {[%clk 0:02:37]} 14. h4 {[%clk 0:02:59]}  Nc6 {[%clk 0:02:33]} 15. h5 {[%clk 0:02:58]}  Nxd4 {[%clk 0:02:29]} 16. O-O-O {[%clk 0:02:53]}  e5 {[%clk 0:02:23]} 17. f4 {[%clk 0:02:47]}  Nf5 {[%clk 0:02:09]} 18. Qe2 {[%clk 0:02:45]}  Qa5 {[%clk 0:01:53]} 19. hxg6 {[%clk 0:02:43]}  hxg6 {[%clk 0:01:50]} 20. Qg4 {[%clk 0:02:25]}  Nxe3 {[%clk 0:01:48]} 21. fxe3 {[%clk 0:02:16]}  Qxc5 {[%clk 0:01:46]} 22. Nd5 {[%clk 0:02:09]}  Rfe8 {[%clk 0:01:42]} 23. f5 {[%clk 0:01:57]}  c3 {[%clk 0:01:40]} 24. fxg6 {[%clk 0:01:47]}  cxb2+ {[%clk 0:01:35]} 25. Kb1 {[%clk 0:01:46]}  Red8 {[%clk 0:00:51]} 26. gxf7+ {[%clk 0:01:29]}  Kf8 {[%clk 0:00:50]} 27. Rh8+ {[%clk 0:01:26]}  Kxf7 {[%clk 0:00:35]} 28. Rf1+ {[%clk 0:01:25]} 1-0


[Site "https://www.chess.com"]

[Event "Titled Tuesday Blitz July 25 Early 2023"]
[White "Salman, Pavel"]
[Black "Kayis, Gulcan Sena"]
[WhiteFideId "24153753"]
[BlackFideId "34553045"]
[WhiteElo "2494"]
[BlackElo "2264"]
[Result "1-0"]
[Round "6"]
[TimeControl "180+2"]
[Date "2023.07.25"]
[WhiteClock "0:01:02"]
[BlackClock "0:00:16"]
[Board "130"]

1. c4 {[%clk 0:02:59]}  Nf6 {[%clk 0:02:57]} 2. b3 {[%clk 0:03:00]}  e6 {[%clk 0:02:56]} 3. Bb2 {[%clk 0:03:01]}  Be7 {[%clk 0:02:56]} 4. d4 {[%clk 0:03:01]}  d5 {[%clk 0:02:55]} 5. Nf3 {[%clk 0:03:01]}  c6 {[%clk 0:02:55]} 6. Ne5 {[%clk 0:03:01]}  O-O {[%clk 0:02:54]} 7. e3 {[%clk 0:03:01]}  Nbd7 {[%clk 0:02:53]} 8. f4 {[%clk 0:03:01]}  c5 {[%clk 0:02:53]} 9. Be2 {[%clk 0:03:00]}  dxc4 {[%clk 0:02:51]} 10. bxc4 {[%clk 0:02:59]}  cxd4 {[%clk 0:02:51]} 11. exd4 {[%clk 0:02:59]}  Qb6 {[%clk 0:02:50]} 12. Qb3 {[%clk 0:02:57]}  Bb4+ {[%clk 0:02:41]} 13. Nc3 {[%clk 0:02:44]}  Bxc3+ {[%clk 0:02:32]} 14. Bxc3 {[%clk 0:02:43]}  Ne4 {[%clk 0:02:31]} 15. Nxd7 {[%clk 0:02:31]}  Qxb3 {[%clk 0:02:29]} 16. axb3 {[%clk 0:02:31]}  Bxd7 {[%clk 0:02:28]} 17. Bb4 {[%clk 0:02:31]}  Rfd8 {[%clk 0:02:27]} 18. Bf3 {[%clk 0:02:32]}  Bc6 {[%clk 0:02:25]} 19. Rd1 {[%clk 0:02:26]}  a5 {[%clk 0:02:24]} 20. Ba3 {[%clk 0:02:24]}  Nc3 {[%clk 0:02:18]} 21. Rd3 {[%clk 0:02:20]}  Ne4 {[%clk 0:02:09]} 22. O-O {[%clk 0:02:18]}  Nf6 {[%clk 0:02:00]} 23. Bxc6 {[%clk 0:02:13]}  bxc6 {[%clk 0:02:00]} 24. Bc5 {[%clk 0:02:13]}  Rab8 {[%clk 0:01:58]} 25. Ra1 {[%clk 0:02:12]}  Ra8 {[%clk 0:01:42]} 26. Bb6 {[%clk 0:02:07]}  Rd7 {[%clk 0:01:42]} 27. Rxa5 {[%clk 0:02:05]}  Rxa5 {[%clk 0:01:38]} 28. Bxa5 {[%clk 0:02:05]}  Kf8 {[%clk 0:01:34]} 29. Kf2 {[%clk 0:02:00]}  Ne4+ {[%clk 0:01:33]} 30. Ke3 {[%clk 0:02:00]}  f5 {[%clk 0:01:32]} 31. g4 {[%clk 0:01:55]}  g6 {[%clk 0:01:30]} 32. g5 {[%clk 0:01:55]}  Ke8 {[%clk 0:01:29]} 33. h4 {[%clk 0:01:48]}  Ra7 {[%clk 0:01:22]} 34. b4 {[%clk 0:01:48]}  Kd7 {[%clk 0:01:21]} 35. d5 {[%clk 0:01:42]}  cxd5 {[%clk 0:01:20]} 36. cxd5 {[%clk 0:01:43]}  Rb7 {[%clk 0:01:17]} 37. dxe6+ {[%clk 0:01:40]}  Kxe6 {[%clk 0:01:17]} 38. Rd8 {[%clk 0:01:39]}  Nd6 {[%clk 0:01:04]} 39. Kd4 {[%clk 0:01:33]}  Nf7 {[%clk 0:00:52]} 40. Re8+ {[%clk 0:01:28]}  Kd7 {[%clk 0:00:52]} 41. Rf8 {[%clk 0:01:24]}  Ke7 {[%clk 0:00:52]} 42. Ra8 {[%clk 0:01:23]}  Rd7+ {[%clk 0:00:49]} 43. Kc5 {[%clk 0:01:22]}  Rd1 {[%clk 0:00:46]} 44. b5 {[%clk 0:01:20]}  Rf1 {[%clk 0:00:42]} 45. Bc7 {[%clk 0:01:18]}  Rc1+ {[%clk 0:00:41]} 46. Kb6 {[%clk 0:01:18]}  Kd7 {[%clk 0:00:40]} 47. Ra7 {[%clk 0:01:17]}  Kc8 {[%clk 0:00:40]} 48. Be5 {[%clk 0:01:12]}  Nxe5 {[%clk 0:00:32]} 49. fxe5 {[%clk 0:01:13]}  f4 {[%clk 0:00:29]} 50. Rxh7 {[%clk 0:01:12]}  f3 {[%clk 0:00:26]} 51. e6 {[%clk 0:01:12]}  Kd8 {[%clk 0:00:24]} 52. Rf7 {[%clk 0:01:11]}  Re1 {[%clk 0:00:22]} 53. Rf8+ {[%clk 0:01:05]}  Ke7 {[%clk 0:00:21]} 54. Rxf3 {[%clk 0:01:06]}  Rxe6+ {[%clk 0:00:21]} 55. Kc7 {[%clk 0:01:06]}  Re4 {[%clk 0:00:20]} 56. b6 {[%clk 0:01:04]}  Rxh4 {[%clk 0:00:20]} 57. Re3+ {[%clk 0:01:03]}  Kf8 {[%clk 0:00:19]} 58. b7 {[%clk 0:01:03]}  Rc4+ {[%clk 0:00:19]} 59. Kd7 {[%clk 0:01:02]}  Rd4+ {[%clk 0:00:19]} 60. Kc6 {[%clk 0:01:02]}  Rc4+ {[%clk 0:00:16]} 61. Kb5 {[%clk 0:01:02]} 1-0


[Site "https://www.chess.com"]

[Event "Titled Tuesday Blitz July 25 Early 2023"]
[White "Ginzburg, Yakov"]
[Black "Atakhan, Abtin"]
[WhiteFideId "4157176"]
[BlackFideId "22502203"]
[WhiteElo "2493"]
[BlackElo "2738"]
[Result "0-1"]
[Round "6"]
[TimeControl "180+2"]
[Date "2023.07.25"]
[WhiteClock "0:00:00"]
[BlackClock "0:00:04"]
[Board "131"]

1. d4 {[%clk 0:03:00]}  Nf6 {[%clk 0:02:59]} 2. g3 {[%clk 0:02:59]}  d5 {[%clk 0:02:57]} 3. Bg2 {[%clk 0:03:00]}  Bf5 {[%clk 0:02:57]} 4. c4 {[%clk 0:02:58]}  e6 {[%clk 0:02:57]} 5. Nc3 {[%clk 0:02:58]}  Bb4 {[%clk 0:02:56]} 6. Qb3 {[%clk 0:02:57]}  Nc6 {[%clk 0:02:56]} 7. Nf3 {[%clk 0:02:53]}  dxc4 {[%clk 0:02:44]} 8. Qxc4 {[%clk 0:02:52]}  Qd5 {[%clk 0:02:44]} 9. Qxd5 {[%clk 0:02:47]}  exd5 {[%clk 0:02:37]} 10. Bd2 {[%clk 0:02:41]}  O-O {[%clk 0:02:30]} 11. O-O {[%clk 0:02:39]}  Rfe8 {[%clk 0:02:30]} 12. e3 {[%clk 0:02:38]}  a5 {[%clk 0:02:26]} 13. Rac1 {[%clk 0:02:37]}  a4 {[%clk 0:02:25]} 14. a3 {[%clk 0:02:32]}  Bxc3 {[%clk 0:02:24]} 15. Bxc3 {[%clk 0:02:30]}  Be4 {[%clk 0:02:15]} 16. Rfd1 {[%clk 0:02:20]}  Nd7 {[%clk 0:02:05]} 17. Ne5 {[%clk 0:02:00]}  Ndxe5 {[%clk 0:01:37]} 18. Bxe4 {[%clk 0:01:59]}  dxe4 {[%clk 0:01:34]} 19. dxe5 {[%clk 0:01:59]}  Red8 {[%clk 0:01:31]} 20. Kg2 {[%clk 0:01:45]}  Kf8 {[%clk 0:01:28]} 21. Bd4 {[%clk 0:01:24]}  Ke7 {[%clk 0:01:20]} 22. Rc4 {[%clk 0:01:02]}  Ke6 {[%clk 0:01:19]} 23. Rdc1 {[%clk 0:01:01]}  Rd5 {[%clk 0:01:00]} 24. Rxc6+ {[%clk 0:00:51]}  bxc6 {[%clk 0:01:00]} 25. Rxc6+ {[%clk 0:00:52]}  Kd7 {[%clk 0:00:59]} 26. Rc4 {[%clk 0:00:52]}  Raa5 {[%clk 0:00:55]} 27. Bc3 {[%clk 0:00:51]}  Ra6 {[%clk 0:00:44]} 28. Rxe4 {[%clk 0:00:50]}  c5 {[%clk 0:00:45]} 29. f4 {[%clk 0:00:49]}  Ke6 {[%clk 0:00:40]} 30. Kf3 {[%clk 0:00:49]}  Rd1 {[%clk 0:00:38]} 31. g4 {[%clk 0:00:12]}  g6 {[%clk 0:00:38]} 32. f5+ {[%clk 0:00:09]}  gxf5 {[%clk 0:00:32]} 33. gxf5+ {[%clk 0:00:10]}  Kxf5 {[%clk 0:00:33]} 34. Rf4+ {[%clk 0:00:11]}  Kg6 {[%clk 0:00:33]} 35. Rg4+ {[%clk 0:00:10]}  Kh5 {[%clk 0:00:32]} 36. Rg7 {[%clk 0:00:09]}  Kh6 {[%clk 0:00:33]} 37. Rg3 {[%clk 0:00:06]}  Re6 {[%clk 0:00:30]} 38. Ke4 {[%clk 0:00:07]}  Kh5 {[%clk 0:00:24]} 39. Rg7 {[%clk 0:00:06]}  f6 {[%clk 0:00:19]} 40. Kf5 {[%clk 0:00:06]}  Kh6 {[%clk 0:00:18]} 41. exf6 {[%clk 0:00:04]}  Rxe3 {[%clk 0:00:16]} 42. f7 {[%clk 0:00:04]}  Rf1+ {[%clk 0:00:10]} 43. Kg4 {[%clk 0:00:04]}  Rxc3 {[%clk 0:00:08]} 44. Rg8 {[%clk 0:00:04]}  Rc4+ {[%clk 0:00:08]} 45. Kg3 {[%clk 0:00:04]}  Rxf7 {[%clk 0:00:08]} 46. Rc8 {[%clk 0:00:04]}  Rd7 {[%clk 0:00:07]} 47. h4 {[%clk 0:00:04]}  Rd3+ {[%clk 0:00:06]} 48. Kf2 {[%clk 0:00:04]}  Rc2+ {[%clk 0:00:07]} 49. Ke1 {[%clk 0:00:05]}  c4 {[%clk 0:00:05]} 50. Rc5 {[%clk 0:00:04]}  Rh3 {[%clk 0:00:04]} 51. Rc6+ {[%clk 0:00:04]}  Kh5 {[%clk 0:00:05]} 52. Kd1 {[%clk 0:00:05]}  Rxb2 {[%clk 0:00:04]} 53. Kc1 {[%clk 0:00:05]}  Rg2 {[%clk 0:00:04]} 54. Rc5+ {[%clk 0:00:04]}  Kxh4 {[%clk 0:00:04]} 55. Rxc4+ {[%clk 0:00:04]}  Kg5 {[%clk 0:00:04]} 56. Rc5+ {[%clk 0:00:05]}  Kf6 {[%clk 0:00:04]} 57. Rc6+ {[%clk 0:00:04]}  Ke7 {[%clk 0:00:05]} 58. Rh6 {[%clk 0:00:00]}  Rxh6 {[%clk 0:00:04]} 0-1


[Site "https://www.chess.com"]

[Event "Titled Tuesday Blitz July 25 Early 2023"]
[White "Danielyan, Vahe"]
[Black "Feliz Dotel, Dewar Bienvenido"]
[WhiteFideId "13304828"]
[BlackFideId "6402801"]
[WhiteElo "2638"]
[BlackElo "2092"]
[Result "1-0"]
[Round "6"]
[TimeControl "180+2"]
[Date "2023.07.25"]
[WhiteClock "0:02:41"]
[BlackClock "0:00:40"]
[Board "132"]

1. d4 {[%clk 0:03:00]}  d5 {[%clk 0:02:58]} 2. Nc3 {[%clk 0:02:59]}  e6 {[%clk 0:02:58]} 3. e4 {[%clk 0:02:56]}  dxe4 {[%clk 0:02:57]} 4. Nxe4 {[%clk 0:02:56]}  Nf6 {[%clk 0:02:57]} 5. Bg5 {[%clk 0:02:54]}  Be7 {[%clk 0:02:57]} 6. Bxf6 {[%clk 0:02:54]}  Bxf6 {[%clk 0:02:57]} 7. Nf3 {[%clk 0:02:55]}  O-O {[%clk 0:02:57]} 8. c3 {[%clk 0:02:54]}  b6 {[%clk 0:02:55]} 9. Bd3 {[%clk 0:02:54]}  Bb7 {[%clk 0:02:54]} 10. Qc2 {[%clk 0:02:55]}  Nd7 {[%clk 0:02:34]} 11. O-O-O {[%clk 0:02:52]}  Rc8 {[%clk 0:02:19]} 12. Kb1 {[%clk 0:02:51]}  Bxe4 {[%clk 0:02:17]} 13. Bxe4 {[%clk 0:02:51]}  g6 {[%clk 0:02:16]} 14. h4 {[%clk 0:02:52]}  Bg7 {[%clk 0:01:24]} 15. h5 {[%clk 0:02:50]}  Qf6 {[%clk 0:01:12]} 16. g4 {[%clk 0:02:46]}  c5 {[%clk 0:01:07]} 17. d5 {[%clk 0:02:44]}  exd5 {[%clk 0:01:07]} 18. Rxd5 {[%clk 0:02:45]}  Rfd8 {[%clk 0:01:04]} 19. Rhd1 {[%clk 0:02:43]}  Nf8 {[%clk 0:01:00]} 20. g5 {[%clk 0:02:43]}  Qe6 {[%clk 0:00:57]} 21. Rxd8 {[%clk 0:02:42]}  Rxd8 {[%clk 0:00:57]} 22. Rxd8 {[%clk 0:02:43]}  b5 {[%clk 0:00:52]} 23. h6 {[%clk 0:02:43]}  Bh8 {[%clk 0:00:50]} 24. Qd3 {[%clk 0:02:42]}  f6 {[%clk 0:00:40]} 25. Bd5 {[%clk 0:02:41]} 1-0


[Site "https://www.chess.com"]

[Event "Titled Tuesday Blitz July 25 Early 2023"]
[White "Rios Escobar, Adan"]
[Black "Iskusnyh, Sergei"]
[WhiteFideId "3403645"]
[BlackFideId "4120027"]
[WhiteElo "2412"]
[BlackElo "2617"]
[Result "0-1"]
[Round "6"]
[TimeControl "180+2"]
[Date "2023.07.25"]
[WhiteClock "0:00:26"]
[BlackClock "0:00:57"]
[Board "133"]

1. d4 {[%clk 0:03:00]}  d5 {[%clk 0:02:59]} 2. g3 {[%clk 0:03:00]}  Nf6 {[%clk 0:02:58]} 3. Nf3 {[%clk 0:02:59]}  c6 {[%clk 0:02:57]} 4. c4 {[%clk 0:02:59]}  Bf5 {[%clk 0:02:54]} 5. Nc3 {[%clk 0:02:59]}  e6 {[%clk 0:02:54]} 6. Nh4 {[%clk 0:03:00]}  Be4 {[%clk 0:02:52]} 7. f3 {[%clk 0:03:00]}  Bg6 {[%clk 0:02:51]} 8. Nxg6 {[%clk 0:03:01]}  hxg6 {[%clk 0:02:51]} 9. Qb3 {[%clk 0:03:01]}  Qc8 {[%clk 0:02:45]} 10. e4 {[%clk 0:02:58]}  Be7 {[%clk 0:02:40]} 11. Bd3 {[%clk 0:02:43]}  O-O {[%clk 0:02:36]} 12. e5 {[%clk 0:02:39]}  Nfd7 {[%clk 0:02:34]} 13. h4 {[%clk 0:02:38]}  c5 {[%clk 0:02:28]} 14. cxd5 {[%clk 0:02:26]}  cxd4 {[%clk 0:02:28]} 15. dxe6 {[%clk 0:02:26]}  Nc5 {[%clk 0:02:23]} 16. exf7+ {[%clk 0:02:26]}  Rxf7 {[%clk 0:02:12]} 17. Qc4 {[%clk 0:01:49]}  Nxd3+ {[%clk 0:02:09]} 18. Qxd3 {[%clk 0:01:50]}  dxc3 {[%clk 0:02:09]} 19. Qxg6 {[%clk 0:01:31]}  Nc6 {[%clk 0:01:43]} 20. O-O {[%clk 0:00:58]}  Nxe5 {[%clk 0:01:40]} 21. Qe4 {[%clk 0:00:58]}  Qh3 {[%clk 0:01:05]} 22. Bf4 {[%clk 0:00:47]}  Bc5+ {[%clk 0:00:59]} 23. Rf2 {[%clk 0:00:29]}  Bxf2+ {[%clk 0:00:58]} 24. Kxf2 {[%clk 0:00:29]}  Qh2+ {[%clk 0:00:58]} 25. Ke3 {[%clk 0:00:26]}  Qd2# {[%clk 0:00:57]} 0-1


[Site "https://www.chess.com"]

[Event "Titled Tuesday Blitz July 25 Early 2023"]
[White "Nunez V, Gustavo Eduardo"]
[Black "NicolaiMaxime"]
[WhiteFideId "4403690"]
[WhiteElo "2410"]
[BlackElo "2598"]
[Result "0-1"]
[Round "6"]
[TimeControl "180+2"]
[Date "2023.07.25"]
[WhiteClock "0:01:11"]
[BlackClock "0:01:06"]
[Board "135"]

1. e4 {[%clk 0:02:56]}  c5 {[%clk 0:03:00]} 2. Nc3 {[%clk 0:02:56]}  Nc6 {[%clk 0:03:00]} 3. g3 {[%clk 0:02:56]}  g6 {[%clk 0:03:00]} 4. Bg2 {[%clk 0:02:57]}  Bg7 {[%clk 0:03:01]} 5. d3 {[%clk 0:02:57]}  h5 {[%clk 0:03:01]} 6. Be3 {[%clk 0:02:56]}  d6 {[%clk 0:02:59]} 7. h3 {[%clk 0:02:56]}  h4 {[%clk 0:02:57]} 8. g4 {[%clk 0:02:56]}  Nf6 {[%clk 0:02:57]} 9. f4 {[%clk 0:02:55]}  e5 {[%clk 0:02:56]} 10. f5 {[%clk 0:02:55]}  Bd7 {[%clk 0:02:50]} 11. Bg5 {[%clk 0:02:48]}  Qa5 {[%clk 0:02:47]} 12. Qd2 {[%clk 0:02:43]}  O-O-O {[%clk 0:02:43]} 13. Nf3 {[%clk 0:02:39]}  Rdg8 {[%clk 0:02:41]} 14. Bxh4 {[%clk 0:02:32]}  gxf5 {[%clk 0:02:39]} 15. exf5 {[%clk 0:02:28]}  d5 {[%clk 0:02:21]} 16. Bxf6 {[%clk 0:02:26]}  Bxf6 {[%clk 0:02:19]} 17. Nxd5 {[%clk 0:02:27]}  Qd8 {[%clk 0:02:17]} 18. c4 {[%clk 0:02:19]}  Nd4 {[%clk 0:01:55]} 19. Nxf6 {[%clk 0:02:13]}  Qxf6 {[%clk 0:01:56]} 20. Nxd4 {[%clk 0:02:12]}  exd4 {[%clk 0:01:55]} 21. O-O-O {[%clk 0:02:13]}  Re8 {[%clk 0:01:49]} 22. Rde1 {[%clk 0:02:14]}  Qh4 {[%clk 0:01:47]} 23. Re4 {[%clk 0:02:03]}  Qg3 {[%clk 0:01:43]} 24. Qe2 {[%clk 0:02:00]}  Bc6 {[%clk 0:01:41]} 25. Rxe8+ {[%clk 0:01:50]}  Rxe8 {[%clk 0:01:39]} 26. Be4 {[%clk 0:01:50]}  Bxe4 {[%clk 0:01:28]} 27. dxe4 {[%clk 0:01:51]}  Qf4+ {[%clk 0:01:27]} 28. Qd2 {[%clk 0:01:49]}  Qxe4 {[%clk 0:01:27]} 29. Rf1 {[%clk 0:01:40]}  d3 {[%clk 0:01:24]} 30. b3 {[%clk 0:01:33]}  Qd4 {[%clk 0:01:22]} 31. Qb2 {[%clk 0:01:30]}  d2+ {[%clk 0:01:11]} 32. Qxd2 {[%clk 0:01:14]}  Qa1+ {[%clk 0:01:10]} 33. Kc2 {[%clk 0:01:15]}  Qxf1 {[%clk 0:01:09]} 34. Qd6 {[%clk 0:01:11]}  Re2+ {[%clk 0:01:06]} 35. Kc3 {[%clk 0:01:11]}  Qc1+ {[%clk 0:01:06]} 36. Kd3 {[%clk 0:01:11]}  Qd2# {[%clk 0:01:06]} 0-1


[Site "https://www.chess.com"]

[Event "Titled Tuesday Blitz July 25 Early 2023"]
[White "Willy, Stephen"]
[Black "Fernandez, Fernando"]
[WhiteFideId "30981468"]
[BlackFideId "3802299"]
[WhiteElo "2404"]
[BlackElo "2552"]
[Result "0-1"]
[Round "6"]
[TimeControl "180+2"]
[Date "2023.07.25"]
[WhiteClock "0:00:05"]
[BlackClock "0:00:05"]
[Board "137"]

1. e4 {[%clk 0:03:00]}  e5 {[%clk 0:02:54]} 2. d4 {[%clk 0:02:56]}  exd4 {[%clk 0:02:50]} 3. Qxd4 {[%clk 0:02:56]}  Nc6 {[%clk 0:02:50]} 4. Qe3 {[%clk 0:02:54]}  Nf6 {[%clk 0:02:50]} 5. Nc3 {[%clk 0:02:53]}  Bb4 {[%clk 0:02:50]} 6. Bd2 {[%clk 0:02:54]}  O-O {[%clk 0:02:47]} 7. O-O-O {[%clk 0:02:53]}  Re8 {[%clk 0:02:44]} 8. Qg3 {[%clk 0:02:38]}  Rxe4 {[%clk 0:02:41]} 9. Bd3 {[%clk 0:02:24]}  Rg4 {[%clk 0:02:40]} 10. Qh3 {[%clk 0:02:17]}  d5 {[%clk 0:02:39]} 11. Nf3 {[%clk 0:01:58]}  Re4 {[%clk 0:01:46]} 12. Qg3 {[%clk 0:01:42]}  Rg4 {[%clk 0:01:38]} 13. Qh3 {[%clk 0:01:42]}  Re4 {[%clk 0:01:38]} 14. Qg3 {[%clk 0:01:34]}  Bd6 {[%clk 0:01:38]} 15. Qg5 {[%clk 0:01:21]}  h6 {[%clk 0:01:36]} 16. Nxe4 {[%clk 0:01:16]}  hxg5 {[%clk 0:01:32]} 17. Nexg5 {[%clk 0:01:17]}  Bg4 {[%clk 0:01:25]} 18. h3 {[%clk 0:01:13]}  Bxf3 {[%clk 0:01:18]} 19. gxf3 {[%clk 0:01:08]}  Nb4 {[%clk 0:01:01]} 20. Bxb4 {[%clk 0:00:56]}  Bxb4 {[%clk 0:01:02]} 21. Rdg1 {[%clk 0:00:51]}  Qd6 {[%clk 0:00:37]} 22. h4 {[%clk 0:00:51]}  Nh5 {[%clk 0:00:30]} 23. Rg4 {[%clk 0:00:42]}  a5 {[%clk 0:00:30]} 24. Rhg1 {[%clk 0:00:38]}  a4 {[%clk 0:00:28]} 25. a3 {[%clk 0:00:33]}  Bc5 {[%clk 0:00:28]} 26. Nh3 {[%clk 0:00:33]}  Qf6 {[%clk 0:00:27]} 27. Ng5 {[%clk 0:00:25]}  Bxf2 {[%clk 0:00:26]} 28. R1g2 {[%clk 0:00:23]}  Be3+ {[%clk 0:00:26]} 29. Kb1 {[%clk 0:00:23]}  Bxg5 {[%clk 0:00:26]} 30. hxg5 {[%clk 0:00:24]}  Qe5 {[%clk 0:00:24]} 31. Rh4 {[%clk 0:00:19]}  g6 {[%clk 0:00:22]} 32. Rgh2 {[%clk 0:00:17]}  Qxg5 {[%clk 0:00:20]} 33. f4 {[%clk 0:00:15]}  Qg3 {[%clk 0:00:19]} 34. f5 {[%clk 0:00:15]}  c5 {[%clk 0:00:15]} 35. fxg6 {[%clk 0:00:15]}  fxg6 {[%clk 0:00:16]} 36. R4h3 {[%clk 0:00:13]}  Qg1+ {[%clk 0:00:15]} 37. Ka2 {[%clk 0:00:14]}  c4 {[%clk 0:00:15]} 38. Be2 {[%clk 0:00:14]}  Ra6 {[%clk 0:00:09]} 39. Bf3 {[%clk 0:00:10]}  Rd6 {[%clk 0:00:08]} 40. Rg2 {[%clk 0:00:10]}  Qe3 {[%clk 0:00:04]} 41. Bg4 {[%clk 0:00:07]}  Qe5 {[%clk 0:00:02]} 42. Bxh5 {[%clk 0:00:07]}  Kf8 {[%clk 0:00:03]} 43. Bxg6 {[%clk 0:00:06]}  b5 {[%clk 0:00:03]} 44. Rh7 {[%clk 0:00:06]}  d4 {[%clk 0:00:03]} 45. Rf7+ {[%clk 0:00:06]}  Kg8 {[%clk 0:00:02]} 46. Bh5+ {[%clk 0:00:06]}  Kh8 {[%clk 0:00:02]} 47. Bf3 {[%clk 0:00:06]}  Rh6 {[%clk 0:00:01]} 48. Rf8+ {[%clk 0:00:05]}  Kh7 {[%clk 0:00:02]} 49. Bc6 {[%clk 0:00:05]}  Rxc6 {[%clk 0:00:02]} 50. Rf7+ {[%clk 0:00:04]}  Kh6 {[%clk 0:00:02]} 51. Rf3 {[%clk 0:00:04]}  Qh5 {[%clk 0:00:01]} 52. Rf7 {[%clk 0:00:04]}  Qxf7 {[%clk 0:00:01]} 53. Rh2+ {[%clk 0:00:04]}  Qh5 {[%clk 0:00:02]} 54. Rg2 {[%clk 0:00:05]}  Qg6 {[%clk 0:00:02]} 55. Rh2+ {[%clk 0:00:06]}  Kg7 {[%clk 0:00:03]} 56. Rf2 {[%clk 0:00:07]}  Qf7 {[%clk 0:00:03]} 57. Rg2+ {[%clk 0:00:07]}  Kf8 {[%clk 0:00:04]} 58. Rh2 {[%clk 0:00:05]}  c3+ {[%clk 0:00:05]} 0-1


[Site "https://www.chess.com"]